bitfinex-derivatives/quotes_SOLF0:USTF0_20250415
["timestamp","ask_amount","ask_price","bid_price","bid_amount"]
[1744729257371,0.05113213,130.79,130.77,7.6473]
[1744729257773,0.05113213,130.79,130.76,0.04868344]
[1744729258070,0.05113213,130.79,130.78,7.647]
[1744729258866,0.05113213,130.79,130.76,0.04868344]
[1744729258867,31.84082275,130.85,130.8,7.6453]
[1744729259266,7.6443,130.83,130.77,40.18]
[1744729259571,31.84082275,130.85,130.8,7.6453]
[1744729259772,7.645,130.82,130.77,40.18]
[1744729259972,0.04873558,130.81,130.78,0.05211463]
[1744729260673,0.04873558,130.81,130.79,7.646]
[1744729260868,0.04873558,130.81,130.78,0.05211463]
[1744729261572,7.6461,130.8,130.78,0.05211463]
[1744729261773,0.04873558,130.81,130.78,0.05211463]
[1744729262075,7.6464,130.79,130.78,0.05211463]
[1744729263675,7.6489,130.75,130.71,590.8]
[1744729263973,29.74592275,130.81,130.71,590.8]
[1744729264174,29.74592275,130.81,130.72,2.0926]
[1744729264481,2.0661,130.82,130.72,2.0926]
[1744729264680,0.05147643,130.78,130.76,0.05140131]
[1744729264871,0.05592336,130.78,130.76,0.05140131]
[1744729265066,31.84082275,130.85,130.76,0.05140131]
[1744729265271,2.0272,130.87,130.76,31.69962275]
[1744729265473,40.16,130.88,130.76,31.69962275]
[1744729265474,40.16,130.88,130.78,29.74592275]
[1744729265669,7.6419,130.87,130.8,29.74592275]
[1744729265979,4.1404,130.9,130.8,29.74592275]
[1744729266177,0.05665992,130.86,130.85,7.6426]
[1744729266374,0.05343311,130.87,130.84,0.05783993]
[1744729266574,7.6429,130.85,130.84,0.05783993]
[1744729267077,7.6448,130.82,130.79,47.8061]
[1744729267277,29.74592275,130.85,130.76,42.1137]
[1744729267779,7.6452,130.82,130.78,7.6467]
[1744729267984,7.6452,130.82,130.76,42.1137]
[1744729268173,0.05239668,130.8,130.78,0.04937713]
[1744729268375,0.05185209,130.8,130.78,0.04937713]
[1744729269581,29.74592275,130.79,130.73,2.1319]
[1744729270578,7.69828235,130.77,130.75,0.05568388]
[1744729271080,7.6482,130.76,130.75,0.05568388]
[1744729271381,0.05028235,130.77,130.75,0.05568388]
[1744729271679,7.69808235,130.77,130.75,0.05568388]
[1744729271882,0.05028235,130.77,130.75,0.05568388]
[1744729272482,69.90592275,130.83,130.75,0.05568388]
[1744729272783,7.6449,130.82,130.75,2.0845]
[1744729273080,40.16,130.86,130.75,2.0845]
[1744729273286,7.6461,130.8,130.75,2.0845]
[1744729273486,29.74592275,130.85,130.75,2.0845]
[1744729273487,0.05623391,130.79,130.76,0.05057312]
[1744729273678,0.05288048,130.79,130.78,7.6467]
[1744729274177,0.05288048,130.79,130.77,7.6474]
[1744729274382,0.05288048,130.79,130.76,0.04913968]
[1744729274983,0.05288048,130.79,130.78,7.647]
[1744729277782,40.16,130.86,130.78,40.16]
[1744729277980,35.95662275,130.88,130.78,40.16]
[1744729278280,7.6433,130.85,130.78,40.16]
[1744729278684,0.05172515,130.83,130.8,0.05727382]
[1744729280285,0.05172515,130.83,130.82,7.6447]
[1744729280586,0.05172515,130.83,130.8,0.05727382]
[1744729280884,0.05172515,130.83,130.81,7.6449]
[1744729281786,0.05172515,130.83,130.8,0.05727382]
[1744729282788,7.69602515,130.83,130.8,7.70277382]
[1744729282987,7.69602515,130.83,130.8,0.05727382]
[1744729283188,0.05172515,130.83,130.8,0.05727382]
[1744729283587,0.05172515,130.83,130.81,7.6452]
[1744729283885,0.05172515,130.83,130.8,0.05727382]
[1744729284290,0.05172515,130.83,130.82,7.6447]
[1744729284686,0.05172515,130.83,130.8,0.05727382]
[1744729285092,29.74592275,130.82,130.8,0.05727382]
[1744729285292,7.6452,130.81,130.8,0.05727382]
[1744729285592,29.74592275,130.82,130.74,39.98]
[1744729285793,7.6479,130.77,130.74,7.649]
[1744729286091,29.74592275,130.79,130.73,2.1562]
[1744729286386,0.05044022,130.77,130.75,0.05372913]
[1744729287492,7.69834022,130.77,130.75,0.05372913]
[1744729288193,0.05044022,130.77,130.76,7.6482]
[1744729288788,0.05044022,130.77,130.75,0.05372913]
[1744729288993,29.79636297,130.77,130.7,1.98]
[1744729289190,7.6494,130.74,130.71,7.6507]
[1744729289494,29.74592275,130.77,130.69,2.1562]
[1744729289688,7.6496,130.74,130.71,7.6508]
[1744729289898,29.74592275,130.75,130.68,39.98]
[1744729290091,0.05816292,130.73,130.7,0.05715165]
[1744729290391,0.05816292,130.73,130.71,7.6506]
[1744729290590,0.05816292,130.73,130.7,0.05715165]
[1744729290797,7.6511,130.71,130.7,0.05715165]
[1744729291295,0.05816292,130.73,130.7,0.05715165]
[1744729291790,0.05816292,130.73,130.72,7.6505]
[1744729292493,0.05816292,130.73,130.7,0.05715165]
[1744729294287,0.05816292,130.73,130.72,7.6505]
[1744729294893,626.17572275,130.81,130.72,7.6505]
[1744729295195,46.0098,130.81,130.71,42.1387]
[1744729295395,7.6474,130.78,130.71,42.1387]
[1744729295691,29.74592275,130.77,130.67,40.0]
[1744729295898,7.6515,130.71,130.67,42.1387]
[1744729296100,7.6515,130.71,130.68,7.6526]
[1744729296294,0.05756201,130.7,130.68,7.70931533]
[1744729296893,7.70926201,130.7,130.68,0.05671533]
[1744729297592,0.05756201,130.7,130.68,0.05671533]
[1744729298098,7.70956201,130.7,130.68,0.05671533]
[1744729298292,0.05756201,130.7,130.68,0.05671533]
[1744729298799,7.70956201,130.7,130.68,0.05671533]
[1744729299197,7.6523,130.69,130.68,0.05671533]
[1744729299598,0.05756201,130.7,130.68,0.05671533]
[1744729299799,7.70956201,130.7,130.68,0.05671533]
[1744729300998,7.6523,130.69,130.68,0.05671533]
[1744729301398,0.05756201,130.7,130.68,0.05671533]
[1744729301701,0.05756201,130.7,130.69,7.6523]
[1744729304197,35.83362275,130.75,130.69,7.6523]
[1744729304198,6.1867,130.8,130.69,7.66]
[1744729304398,6.1867,130.8,130.71,29.74592275]
[1744729304598,7.648,130.77,130.7,6.3307]
[1744729305099,0.0577562,130.75,130.72,0.05562515]
[1744729305297,0.0577562,130.75,130.72,40.05562515]
[1744729305599,29.74592275,130.83,130.72,40.05562515]
[1744729305798,7.6468,130.79,130.72,40.0]
[1744729306002,29.74592275,130.81,130.72,40.0]
[1744729306400,0.05316181,130.78,130.75,0.05195936]
[1744729306896,7.6482,130.76,130.75,0.05195936]
[1744729307799,0.05316181,130.78,130.75,0.05195936]
[1744729308101,7.6479,130.77,130.75,0.05195936]
[1744729308297,0.05316181,130.78,130.75,0.05195936]
[1744729309102,0.05316181,130.78,130.76,7.6479]
[1744729309498,0.05316181,130.78,130.75,0.05195936]
[1744729309708,7.70046181,130.78,130.75,7.70065936]
[1744729310002,0.05316181,130.78,130.75,0.05195936]
[1744729310203,0.05316181,130.78,130.77,7.6476]
[1744729310703,6.2657,130.84,130.77,40.0]
[1744729310904,7.6445,130.83,130.79,7.6461]
[1744729311104,7.6445,130.83,130.77,40.0]
[1744729311496,550.68,130.91,130.79,0.04883538]
[1744729311497,0.04969484,130.81,130.79,0.04883538]
[1744729311702,40.0,130.88,130.77,69.74592275]
[1744729312001,6.2984,130.9,130.79,29.74592275]
[1744729312602,7.69475651,130.86,130.83,7.69787364]
[1744729312809,0.05215651,130.86,130.83,0.05377364]
[1744729313305,0.05215651,130.86,130.84,7.6435]
[1744729315110,0.05215651,130.86,130.83,0.05377364]
[1744729315514,7.6435,130.84,130.83,0.05377364]
[1744729316010,29.74592275,130.85,130.78,39.84]
[1744729316310,29.74592275,130.85,130.78,47.4869]
[1744729316504,29.74592275,130.85,130.78,39.84]
[1744729316708,7.645,130.82,130.79,7.6461]
[1744729317018,7.70114819,130.82,130.79,7.69807133]
[1744729318216,7.6454,130.81,130.79,0.05197133]
[1744729318610,0.05614819,130.82,130.79,0.05197133]
[1744729318811,7.6458,130.8,130.79,0.05197133]
[1744729319017,0.05614819,130.82,130.79,0.05197133]
[1744729319315,0.05614819,130.82,130.8,7.6457]
[1744729319521,0.05614819,130.82,130.79,0.05197133]
[1744729320215,7.70104819,130.82,130.79,7.69807133]
[1744729320515,0.05614819,130.82,130.79,0.05197133]
[1744729320915,0.05614819,130.82,130.8,7.6455]
[1744729321317,0.05614819,130.82,130.79,7.69807133]
[1744729321519,0.05614819,130.82,130.79,0.05197133]
[1744729322326,73.76872275,130.9,130.79,39.87197133]
[1744729322617,73.76872275,130.9,130.8,33.99602275]
[1744729322618,44.0228,130.9,130.8,33.99602275]
[1744729322819,4.2028,130.9,130.82,29.74592275]
[1744729323019,31.72252275,130.92,130.83,39.82]
[1744729323215,7.6417,130.88,130.84,7.6432]
[1744729323418,7.6417,130.88,130.8,584.39602275]
[1744729323419,0.05685155,130.87,130.85,0.05663226]
[1744729323619,69.56592275,130.86,130.76,41.8071]
[1744729323816,71.63072275,130.86,130.76,41.8071]
[1744729324121,29.74592275,130.84,130.76,41.8071]
[1744729324518,7.6455,130.81,130.78,7.6467]
[1744729324730,7.70152011,130.81,130.79,0.05260057]
[1744729325627,0.05602011,130.81,130.79,7.69880057]
[1744729325829,0.05602011,130.81,130.79,0.05260057]
[1744729326126,0.05602011,130.81,130.8,7.6458]
[1744729326520,0.05602011,130.81,130.79,0.05260057]
[1744729326718,0.05602011,130.81,130.8,7.6458]
[1744729327122,0.05602011,130.81,130.79,7.69890057]
[1744729327425,0.05602011,130.81,130.79,0.05260057]
[1744729329029,0.05602011,130.81,130.8,7.6458]
[1744729329528,15.2798,130.91,130.8,7.6458]
[1744729329529,31.87662275,130.9,130.8,39.82]
[1744729329725,29.74592275,130.9,130.81,4.1051]
[1744729330533,7.6432,130.85,130.84,0.0587366]
[1744729332229,6.32219611,130.87,130.84,0.0587366]
[1744729332731,7.6429,130.85,130.84,0.0587366]
[1744729335233,7.6449,130.82,130.78,41.9356]
[1744729335634,7.6449,130.82,130.79,7.6461]
[1744729336130,0.05180175,130.82,130.8,7.6457]
[1744729337434,0.05180175,130.82,130.81,7.6452]
[1744729339732,69.56592275,130.92,130.8,29.74592275]
[1744729340236,4.0678,130.94,130.82,29.74592275]
[1744729340435,6.1545,130.99,130.86,29.74592275]
[1744729340636,7.68719788,130.94,130.91,0.05626664]
[1744729340834,0.04919788,130.94,130.91,0.0523675]
[1744729341131,0.04919788,130.94,130.91,7.6914675]
[1744729341437,0.04919788,130.94,130.91,0.0523675]
[1744729341737,0.04919788,130.94,130.91,7.6911675]
[1744729342035,0.04919788,130.94,130.91,0.0523675]
[1744729342836,7.68709788,130.94,130.91,7.6914675]
[1744729343836,0.04919788,130.94,130.91,0.0523675]
[1744729344240,7.68719788,130.94,130.91,7.6916675]
[1744729344435,0.04919788,130.94,130.91,0.0523675]
[1744729344639,0.04919788,130.94,130.91,39.6923675]
[1744729344836,0.04919788,130.94,130.93,7.6382]
[1744729345041,0.04919788,130.94,130.91,39.6923675]
[1744729345238,0.04919788,130.94,130.91,0.0523675]
[1744729346038,29.79512063,130.94,130.91,0.0523675]
[1744729346233,7.6388,130.92,130.91,0.0523675]
[1744729346632,29.74592275,130.92,130.86,39.64]
[1744729347238,7.6397,130.91,130.88,7.641]
[1744729347539,0.05575983,130.91,130.88,0.05574772]
[1744729348439,7.69545983,130.91,130.88,7.69644772]
[1744729348933,7.69545983,130.91,130.88,0.05574772]
[1744729348934,0.05575983,130.91,130.88,0.05574772]
[1744729349137,0.05575983,130.91,130.8,39.64]
[1744729349138,29.74592275,130.9,130.8,39.64]
[1744729349336,29.74592275,130.87,130.8,39.64]
[1744729349540,7.6426,130.86,130.83,7.6438]
[1744729349740,29.74592275,130.87,130.8,39.64]
[1744729350036,7.6433,130.85,130.82,7.69588215]
[1744729350234,0.0568794,130.85,130.82,7.69588215]
[1744729350437,29.80280215,130.85,130.82,0.05128215]
[1744729350641,37.39002275,130.83,130.82,0.05128215]
[1744729351542,7.6441,130.83,130.82,0.05128215]
[1744729352341,7.6468,130.79,130.74,4.0359]
[1744729352641,31.82272275,130.85,130.74,4.0359]
[1744729353033,71.46272275,130.85,130.74,4.0359]
[1744729353234,7.7013641,130.81,130.78,0.0553871]
[1744729354044,7.6458,130.8,130.78,0.0553871]
[1744729354639,7.6464,130.79,130.78,0.0553871]
[1744729355343,7.6459,130.8,130.78,0.0553871]
[1744729355948,29.80198685,130.81,130.78,0.0553871]
[1744729356540,7.6464,130.79,130.78,0.0553871]
[1744729358744,71.47868685,130.81,130.73,1.9565]
[1744729358946,71.42262275,130.81,130.74,7.6491]
[1744729359148,71.42262275,130.81,130.73,1.9565]
[1744729359646,0.05310585,130.78,130.76,0.05867051]
[1744729360147,7.70020585,130.78,130.76,0.05867051]
[1744729360649,7.6476,130.77,130.76,0.05867051]
[1744729363651,7.70040585,130.78,130.76,0.05867051]
[1744729364050,0.05310585,130.78,130.76,0.05867051]
[1744729364351,7.70020585,130.78,130.76,0.05867051]
[1744729364541,7.70020585,130.78,130.76,7.70677051]
[1744729364744,0.05310585,130.78,130.76,0.05867051]
[1744729365548,7.6476,130.77,130.76,0.05867051]
[1744729368055,7.70030585,130.78,130.76,0.05867051]
[1744729368355,0.05310585,130.78,130.76,0.05867051]
[1744729368751,0.05310585,130.78,130.77,7.6476]
[1744729368954,29.74592275,130.9,130.76,0.05867051]
[1744729368955,71.50272275,130.85,130.76,0.05867051]
[1744729369251,71.50272275,130.85,130.76,39.68]
[1744729369557,29.74592275,130.81,130.73,39.68]
[1744729369751,29.74592275,130.81,130.74,7.6491]
[1744729369951,0.0492975,130.79,130.76,0.05173192]
[1744729370253,7.6476,130.77,130.76,0.05173192]
[1744729370852,0.0492975,130.79,130.76,0.05173192]
[1744729371551,7.6476,130.77,130.76,0.05173192]
[1744729374858,29.74592275,130.77,130.7,41.6918]
[1744729375157,29.74592275,130.77,130.71,7.6508]
[1744729375560,29.74592275,130.75,130.67,39.52]
[1744729375758,0.05886313,130.72,130.7,0.0518539]
[1744729376554,7.6514,130.71,130.7,0.0518539]
[1744729377153,0.05886313,130.72,130.7,0.0518539]
[1744729377652,39.52,130.82,130.7,0.0518539]
[1744729377852,69.26592275,130.82,130.71,29.74592275]
[1744729378053,29.74592275,130.8,130.72,43.5046]
[1744729378252,29.74592275,130.8,130.72,11.6347]
[1744729378461,29.74592275,130.8,130.72,3.9846]
[1744729378659,0.05746642,130.77,130.75,0.05052414]
[1744729378861,7.6486,130.76,130.75,0.05052414]
[1744729380661,7.6486,130.76,130.68,43.5046]
[1744729380662,7.6496,130.74,130.69,7.6519]
[1744729381162,29.74592275,130.76,130.68,43.5046]
[1744729381558,0.05825185,130.73,130.71,0.05851825]
[1744729382359,0.05825185,130.73,130.71,7.70961825]
[1744729383066,0.05825185,130.73,130.72,7.6505]
[1744729383363,7.6471,130.78,130.71,0.05851825]
[1744729383558,29.74592275,130.8,130.73,7.6495]
[1744729383760,29.74592275,130.8,130.68,43.5046]
[1744729383961,29.74592275,130.78,130.68,43.5046]
[1744729384162,0.04999222,130.74,130.73,7.6496]
[1744729384461,0.0492309,130.75,130.73,7.6496]
[1744729385564,0.0492309,130.75,130.72,7.70765358]
[1744729385763,0.0492309,130.75,130.72,0.05725358]
[1744729386062,7.6499,130.73,130.72,0.05725358]
[1744729386461,29.74592275,130.74,130.66,2.0427]
[1744729386855,29.74592275,130.76,130.66,2.0427]
[1744729387059,7.6484,130.76,130.67,29.74592275]
[1744729387260,39.54,130.77,130.74,7.649]
[1744729387459,0.05092308,130.77,130.74,0.05328726]
[1744729387663,7.6487,130.76,130.74,0.05328726]
[1744729387961,0.05092308,130.77,130.74,0.05328726]
[1744729388163,7.6487,130.76,130.74,0.05328726]
[1744729388358,0.05092308,130.77,130.74,0.05328726]
[1744729388765,7.6485,130.76,130.74,0.05328726]
[1744729389564,0.05092308,130.77,130.74,0.05328726]
[1744729390766,7.6487,130.75,130.74,0.05328726]
[1744729391663,69.28592275,130.76,130.68,1.9662]
[1744729391868,29.74592275,130.74,130.66,43.5448]
[1744729392073,7.6513,130.71,130.68,7.6526]
[1744729392364,29.74592275,130.74,130.66,43.5448]
[1744729392566,29.74592275,130.74,130.68,7.6524]
[1744729392767,7.7007384,130.71,130.69,0.05023874]
[1744729393068,0.0492384,130.71,130.69,0.05023874]
[1744729393272,7.6517,130.7,130.69,0.05023874]
[1744729394163,7.6536,130.67,130.64,9.6672]
[1744729394468,29.74592275,130.7,130.63,1.9677]
[1744729394666,29.74592275,130.7,130.6,43.5891]
[1744729394968,29.74592275,130.68,130.6,4.0491]
[1744729395169,0.05234534,130.65,130.63,0.05256904]
[1744729395671,7.6556,130.64,130.63,0.05256904]
[1744729395869,0.05234534,130.65,130.63,0.05256904]
[1744729397572,29.74592275,130.72,130.63,0.05256904]
[1744729397768,39.54,130.73,130.62,29.74592275]
[1744729397965,6.1231,130.75,130.64,29.74592275]
[1744729398274,6.1231,130.75,130.66,29.74592275]
[1744729398575,7.70711859,130.72,130.69,0.05427312]
[1744729398775,0.05621859,130.72,130.69,39.59427312]
[1744729398963,7.6484,130.76,130.72,7.6505]
[1744729399275,39.54,130.79,130.7,31.74942275]
[1744729399569,31.74552275,130.82,130.7,31.74942275]
[1744729399768,39.54,130.85,130.74,29.74592275]
[1744729399969,0.05057053,130.81,130.78,0.05791529]
[1744729400672,174.42865992,130.9,130.8,29.74592275]
[1744729400980,7.6407,130.89,130.84,7.6433]
[1744729401173,174.42865992,130.9,130.83,39.54]
[1744729401372,39.54,130.91,130.83,39.54]
[1744729401567,0.05292281,130.88,130.86,0.05385306]
[1744729402265,0.05292281,130.88,130.87,7.6417]
[1744729402576,0.05292281,130.88,130.86,0.05385306]
[1744729403577,0.05292281,130.88,130.87,7.6417]
[1744729405775,0.05292281,130.88,130.86,0.05385306]
[1744729406976,0.05292281,130.88,130.87,7.6417]
[1744729407175,39.54,130.94,130.86,39.43385306]
[1744729407365,39.54,130.94,130.86,39.38]
[1744729408177,0.05756888,130.91,130.89,0.0541381]
[1744729409374,0.05756888,130.91,130.89,7.6943381]
[1744729409675,0.05756888,130.91,130.89,0.0541381]
[1744729409872,7.6362,130.97,130.9,39.38]
[1744729410275,39.38,130.98,130.9,39.38]
[1744729410472,39.38,130.98,130.92,7.6383]
[1744729410673,39.38,130.98,130.9,39.38]
[1744729410980,0.0528563,130.95,130.94,7.6372]
[1744729412177,0.0528563,130.95,130.93,0.05266299]
[1744729412670,0.0528563,130.95,130.94,7.6376]
[1744729413174,0.0528563,130.95,130.93,7.69046299]
[1744729413379,0.0528563,130.95,130.93,0.05266299]
[1744729413873,0.0528563,130.95,130.94,7.6376]
[1744729414474,29.74592275,131.02,130.93,0.05266299]
[1744729414673,619.44592275,131.04,130.94,39.34]
[1744729414874,69.08592275,131.04,130.94,39.34]
[1744729415078,69.08592275,131.04,130.96,7.6363]
[1744729415268,29.74592275,131.0,130.92,2.0599]
[1744729415471,7.6363,130.97,130.92,2.0599]
[1744729415672,0.04871029,130.97,130.95,0.04864259]
[1744729415879,0.05356267,130.97,130.95,0.05073647]
[1744729416080,7.6365,130.96,130.95,0.05073647]
[1744729416973,7.6365,130.96,130.89,2.0128]
[1744729417178,31.79012275,130.98,130.89,2.0128]
[1744729417378,29.74592275,130.96,130.89,2.0128]
[1744729417579,7.6374,130.95,130.9,7.6396]
[1744729417873,29.74592275,130.96,130.88,41.4901]
[1744729418078,0.05240987,130.93,130.91,0.05269551]
[1744729418881,7.6388,130.92,130.91,0.05269551]
[1744729419181,29.74592275,130.92,130.82,39.34]
[1744729419379,29.74592275,130.92,130.83,3.9519]
[1744729419579,7.6396,130.91,130.87,7.6413]
[1744729420080,7.69699311,130.9,130.88,0.05010286]
[1744729420481,0.05689311,130.9,130.88,0.05010286]
[1744729420686,7.6406,130.89,130.88,0.05010286]
[1744729421178,29.80281586,130.9,130.82,39.34]
[1744729421382,29.74592275,130.88,130.79,589.28]
[1744729421584,29.74592275,130.88,130.83,7.6438]
[1744729421881,7.642,130.87,130.83,7.6438]
[1744729422278,0.04870173,130.86,130.83,7.6438]
[1744729422478,0.04870173,130.86,130.84,0.05008653]
[1744729423081,0.04870173,130.86,130.85,7.6429]
[1744729423284,39.34,130.94,130.84,37.43600928]
[1744729423476,6.0297,130.96,130.86,29.74592275]
[1744729423681,7.6374,130.95,130.91,7.6389]
[1744729423881,6.0297,130.96,130.87,41.4034]
[1744729424180,0.05539071,130.93,130.91,7.639]
[1744729424784,0.05539071,130.93,130.9,7.6978658]
[1744729425080,7.69419071,130.93,130.9,0.0581658]
[1744729425284,0.05539071,130.93,130.9,0.0581658]
[1744729425988,29.74592275,130.92,130.9,0.0581658]
[1744729426182,7.6394,130.91,130.9,0.0581658]
[1744729426386,29.74592275,130.92,130.9,0.0581658]
[1744729426685,29.74592275,130.92,130.85,4.036]
[1744729427085,39.34,130.93,130.85,4.036]
[1744729427286,7.6393,130.92,130.85,4.036]
[1744729427586,39.34,130.93,130.85,43.376]
[1744729427784,0.05772752,130.9,130.88,0.0494693]
[1744729427985,0.04876498,130.9,130.89,7.6406]
[1744729430089,0.04876498,130.9,130.88,7.69162691]
[1744729430589,0.04876498,130.9,130.88,0.05072691]
[1744729430888,0.04876498,130.9,130.89,7.6406]
[1744729431989,0.04876498,130.9,130.88,0.05072691]
[1744729432389,0.04876498,130.9,130.88,7.69152691]
[1744729432686,0.04876498,130.9,130.88,0.05072691]
[1744729433790,0.04876498,130.9,130.89,7.6406]
[1744729436595,0.04876498,130.9,130.88,7.69162691]
[1744729436791,0.04876498,130.9,130.88,0.05072691]
[1744729438194,0.04876498,130.9,130.88,7.69172691]
[1744729438395,0.04876498,130.9,130.88,0.05072691]
[1744729438694,0.04876498,130.9,130.89,7.6406]
[1744729439795,1.9719,130.96,130.88,0.05072691]
[1744729440096,7.6374,130.95,130.86,68.96592275]
[1744729440394,68.96592275,130.98,130.93,7.6382]
[1744729440593,7.637,130.96,130.93,7.6382]
[1744729440794,0.0544769,130.96,130.93,0.05425708]
[1744729441997,29.80039965,130.96,130.93,0.05425708]
[1744729442292,0.0544769,130.96,130.93,0.05425708]
[1744729442491,0.0544769,130.96,130.95,7.6371]
[1744729442690,0.0544769,130.96,130.93,0.05425708]
[1744729443094,29.80039965,130.96,130.93,0.05425708]
[1744729443499,7.6376,130.94,130.93,0.05425708]
[1744729444301,29.80039965,130.96,130.93,0.05425708]
[1744729445096,7.6371,130.95,130.93,0.05425708]
[1744729445394,0.0544769,130.96,130.93,0.05425708]
[1744729445699,7.6373,130.95,130.93,0.05425708]
[1744729445894,29.80039965,130.96,130.93,0.05425708]
[1744729446100,7.6371,130.95,130.93,0.05425708]
[1744729446399,29.80039965,130.96,130.93,0.05425708]
[1744729446803,0.0544769,130.96,130.93,0.05425708]
[1744729448404,0.0544769,130.96,130.95,7.6371]
[1744729448701,0.0544769,130.96,130.93,0.05425708]
[1744729449403,0.0544769,130.96,130.94,7.6374]
[1744729449704,0.0544769,130.96,130.93,0.05425708]
[1744729450005,7.6912769,130.96,130.93,0.05425708]
[1744729450300,0.0544769,130.96,130.93,0.05425708]
[1744729450604,7.6914769,130.96,130.93,7.69215708]
[1744729451100,0.0544769,130.96,130.93,0.05425708]
[1744729451808,0.0544769,130.96,130.95,7.6371]
[1744729458310,0.0544769,130.96,130.94,7.6374]
[1744729459413,0.0544769,130.96,130.93,0.05425708]
[1744729460011,29.80039965,130.96,130.93,0.05425708]
[1744729460909,29.74592275,130.94,130.82,39.2]
[1744729461115,7.6414,130.88,130.85,7.6429]
[1744729461603,7.6418,130.87,130.84,7.6432]
[1744729461807,29.74592275,130.88,130.82,39.2]
[1744729462008,0.04837189,130.87,130.84,0.04909542]
[1744729462206,7.6428,130.86,130.84,0.04909542]
[1744729462409,29.74592275,130.86,130.84,0.04909542]
[1744729462810,0.04837189,130.87,130.84,0.04909542]
[1744729463312,0.04837189,130.87,130.86,7.6423]
[1744729464511,29.74592275,130.94,130.85,4.1763]
[1744729464811,29.74592275,130.94,130.86,1.9575]
[1744729465116,29.74592275,130.92,130.85,4.1763]
[1744729465416,7.6406,130.89,130.85,4.1763]
[1744729465614,7.6406,130.89,130.87,0.04993857]
[1744729466316,7.6411,130.88,130.87,0.04993857]
[1744729466614,0.05068551,130.9,130.87,0.04993857]
[1744729466615,29.79660826,130.9,130.87,0.04993857]
[1744729466818,37.43700826,130.9,130.87,0.04993857]
[1744729467017,29.79660826,130.9,130.87,0.04993857]
[1744729467619,0.05068551,130.9,130.87,7.69153857]
[1744729467813,0.05068551,130.9,130.87,0.04993857]
[1744729468115,0.05068551,130.9,130.88,7.6408]
[1744729468311,0.05068551,130.9,130.87,0.04993857]
[1744729468516,0.05068551,130.9,130.89,7.6406]
[1744729471325,29.74592275,130.97,130.87,39.12993857]
[1744729471613,46.7153,130.98,130.88,31.84072275]
[1744729471818,46.7153,130.98,130.94,7.6372]
[1744729472208,0.05084657,130.97,130.95,0.05467069]
[1744729473118,7.68674657,130.97,130.95,0.05467069]
[1744729473620,0.05084657,130.97,130.95,7.69157069]
[1744729474016,0.05084657,130.97,130.95,0.05467069]
[1744729474422,0.05084657,130.97,130.96,7.6365]
[1744729475023,0.05084657,130.97,130.95,0.05467069]
[1744729475219,29.79676932,130.97,130.95,0.05467069]
[1744729475620,0.05084657,130.97,130.95,7.69157069]
[1744729476122,0.05084657,130.97,130.96,7.6365]
[1744729479717,4.657e-05,130.97,130.96,7.6365]
[1744729487921,4.657e-05,130.97,130.95,0.05467069]
[1744729488127,7.63624657,130.97,130.95,0.05467069]
[1744729488322,4.657e-05,130.97,130.95,0.05467069]
[1744729488929,7.63594657,130.97,130.95,0.05467069]
[1744729489924,4.657e-05,130.97,130.95,7.69167069]
[1744729490130,4.657e-05,130.97,130.95,0.05467069]
[1744729490628,4.657e-05,130.97,130.95,7.69127069]
[1744729491429,4.657e-05,130.97,130.96,7.6365]
[1744729492632,4.657e-05,130.97,130.96,52.8889]
[1744729495238,7.6309,131.06,130.96,45.2524]
[1744729495631,29.61276818,131.07,130.96,45.2524]
[1744729495831,29.61276818,131.07,131.01,7.633]
[1744729496238,7.68205647,131.05,131.03,0.05573475]
[1744729497338,7.6318,131.04,131.03,0.05573475]
[1744729497937,7.68205647,131.05,131.03,0.05573475]
[1744729498536,0.05055647,131.05,131.03,0.05573475]
[1744729498927,0.05055647,131.05,131.03,7.68783475]
[1744729499132,7.68185647,131.05,131.03,0.05573475]
[1744729500233,0.05055647,131.05,131.03,0.05573475]
[1744729501146,0.05055647,131.05,131.04,7.6318]
[1744729501344,68.53276818,131.11,131.03,0.05573475]
[1744729501543,7.6288,131.1,131.06,7.6302]
[1744729501746,7.6288,131.1,131.0,38.92]
[1744729502147,7.6289,131.09,131.0,38.92]
[1744729502347,0.04980824,131.06,131.0,38.92]
[1744729502545,0.04980824,131.06,131.03,0.05836453]
[1744729502745,68.53276818,131.14,131.04,38.92]
[1744729502945,68.53276818,131.14,131.05,4.119]
[1744729503147,7.6274,131.12,131.09,7.6288]
[1744729503449,68.53276818,131.14,131.05,4.119]
[1744729503749,0.05263735,131.11,131.1,7.6281]